bitfinex-derivatives/quotes_BTCF0:USTF0_20250125
["timestamp","ask_amount","ask_price","bid_price","bid_amount"]
[1737773630308,0.18096582,104670.0,104660.0,0.70750493]
[1737773633107,0.18096582,104670.0,104660.0,0.87947548]
[1737773634613,0.18096582,104670.0,104660.0,0.81235816]
[1737773635703,0.18096582,104670.0,104660.0,0.84581451]
[1737773636404,0.0951,104670.0,104660.0,0.84581451]
[1737773637110,0.0951,104670.0,104660.0,0.81863502]
[1737773639015,0.0951,104670.0,104660.0,0.77681454]
[1737773640615,0.23833353,104670.0,104660.0,0.77681454]
[1737773640807,0.80970614,104670.0,104660.0,0.20542693]
[1737773641014,1.10970614,104670.0,104660.0,0.02227055]
[1737773641312,0.152883,104660.0,104650.0,0.87593403]
[1737773641501,0.21058761,104660.0,104650.0,0.87593403]
[1737773644614,0.38202908,104660.0,104650.0,0.3609434]
[1737773645412,0.38202908,104660.0,104650.0,0.39440508]
[1737773645814,0.32432447,104660.0,104650.0,0.39440508]
[1737773646216,0.38202908,104660.0,104650.0,0.39440508]
[1737773646412,0.38202908,104660.0,104650.0,0.3609434]
[1737773647919,0.52502025,104660.0,104650.0,0.3609434]
[1737773650221,0.46731564,104660.0,104650.0,0.3609434]
[1737773650724,0.29587417,104660.0,104650.0,0.3609434]
[1737773650910,0.29587417,104660.0,104650.0,0.41864801]
[1737773651719,0.29587417,104660.0,104650.0,0.45054801]
[1737773651911,0.30523735,104660.0,104650.0,0.45054801]
[1737773652820,0.30523735,104660.0,104650.0,0.60344601]
[1737773659324,0.36294196,104660.0,104650.0,0.5457414]
[1737773662124,0.30523735,104660.0,104650.0,0.5457414]
[1737773662624,0.30523735,104660.0,104650.0,0.60344601]
[1737773663524,0.15235435,104660.0,104650.0,0.60344601]
[1737773667529,0.15235435,104660.0,104650.0,0.5457414]
[1737773667530,0.30523735,104660.0,104650.0,0.5457414]
[1737773668325,0.30523735,104660.0,104650.0,0.60344601]
[1737773669127,0.14299117,104660.0,104650.0,0.60344601]
[1737773669329,0.14299117,104660.0,104650.0,0.63690469]
[1737773675238,0.14299117,104660.0,104650.0,0.6946093]
[1737773675446,0.14299117,104660.0,104650.0,0.63690469]
[1737773677151,0.25756353,104660.0,104650.0,0.63690469]
[1737773678047,0.25756353,104660.0,104650.0,0.6946093]
[1737773678239,0.25756353,104660.0,104650.0,0.73611904]
[1737773679149,0.25756353,104660.0,104650.0,0.6946093]
[1737773679541,0.25756353,104660.0,104650.0,0.63690469]
[1737773680850,0.20047544,104660.0,104650.0,0.8663457]
[1737773683151,0.20047544,104660.0,104650.0,0.83288702]
[1737773683352,0.20047544,104660.0,104650.0,0.86634413]
[1737773683647,0.20047544,104660.0,104650.0,0.92404874]
[1737773684549,0.20047544,104660.0,104650.0,0.69460773]
[1737773687348,0.20047544,104660.0,104650.0,0.73617207]
[1737773689357,0.20047544,104660.0,104650.0,0.67846746]
[1737773689558,0.46876766,104660.0,104650.0,0.39440051]
[1737773689851,0.152898,104650.0,104640.0,0.51499063]
[1737773690057,0.57140261,104650.0,104640.0,0.51499063]
[1737773691152,0.57140261,104650.0,104640.0,0.62710932]
[1737773691656,0.60143337,104650.0,104640.0,0.62710932]
[1737773692653,0.513698,104650.0,104640.0,0.62710932]
[1737773692858,0.17144147,104680.0,104670.0,0.152868]
[1737773693051,0.17144147,104680.0,104670.0,0.60140337]
[1737773693252,0.25917684,104680.0,104670.0,0.3608]
[1737773693548,0.41203084,104680.0,104670.0,0.3608]
[1737773694854,0.41203084,104680.0,104660.0,0.3609434]
[1737773694855,0.152868,104670.0,104660.0,0.3609434]
[1737773695067,0.30370337,104670.0,104660.0,0.7217434]
[1737773699149,0.47522921,104670.0,104660.0,0.7217434]
[1737773701062,0.56296458,104670.0,104660.0,0.7217434]
[1737773701366,0.152912,104640.0,104630.0,0.29070962]
[1737773701560,0.513712,104640.0,104630.0,0.29070962]
[1737773703164,0.513712,104640.0,104630.0,0.06183339]
[1737773712666,0.60144737,104640.0,104630.0,0.06183339]
[1737773712968,0.60144737,104640.0,104630.0,0.0604]
[1737773713161,0.513712,104640.0,104630.0,0.0604]
[1737773715674,0.60144737,104640.0,104630.0,0.0303]
[1737773716167,0.546112,104640.0,104630.0,0.0303]
[1737773716371,0.63384737,104640.0,104630.0,0.0303]
[1737773717668,0.546112,104640.0,104630.0,0.0303]
[1737773718974,0.513712,104640.0,104630.0,0.0303]
[1737773719269,0.513712,104640.0,104630.0,0.0625]
[1737773721170,0.60144737,104640.0,104630.0,0.0322]
[1737773721377,0.152927,104630.0,104620.0,0.1856824]
[1737773724369,0.152927,104630.0,104620.0,0.2175824]
[1737773729677,0.152927,104630.0,104620.0,0.25105383]
[1737773729879,0.152927,104630.0,104620.0,0.61185383]
[1737773730985,0.24066237,104630.0,104620.0,0.03361483]
[1737773731478,0.63336237,104630.0,104620.0,0.0001434]
[1737773731685,0.63336237,104630.0,104600.0,1.06119185]
[1737773731686,0.15295,104620.0,104600.0,1.06119185]
[1737773731873,0.24068537,104620.0,104600.0,1.09466584]
[1737773732685,0.24082877,104620.0,104600.0,1.09480924]
[1737773733077,0.60162877,104620.0,104600.0,1.09480924]
[1737773733279,0.60162877,104620.0,104610.0,0.22887623]
[1737773734485,0.66722877,104620.0,104610.0,0.22887623]
[1737773737788,0.68543763,104620.0,104600.0,0.0316434]
[1737773738085,0.152956,104610.0,104600.0,0.0316434]
[1737773741680,0.46713844,104620.0,104600.0,0.48017877]
[1737773741881,0.46713844,104620.0,104610.0,0.0311]
[1737773742180,0.46713844,104620.0,104610.0,0.544856]
[1737773742783,0.46713844,104620.0,104610.0,0.63259137]
[1737773742985,0.46713844,104620.0,104610.0,0.66569137]
[1737773743185,0.46713844,104620.0,104610.0,0.577956]
[1737773743886,0.29597958,104620.0,104610.0,0.577956]
[1737773744785,0.14303458,104620.0,104610.0,0.577956]
[1737773744987,0.14303458,104620.0,104610.0,0.66569137]
[1737773748380,0.0001434,104620.0,104610.0,0.66569137]
[1737773755701,0.11456046,104620.0,104610.0,0.66569137]
[1737773760903,0.11456046,104620.0,104610.0,0.30489137]
[1737773761698,0.11456046,104620.0,104610.0,0.27473949]
[1737773762007,0.11456046,104620.0,104610.0,0.63553949]
[1737773763404,0.14303458,104620.0,104610.0,0.63553949]
[1737773763816,0.14303458,104620.0,104610.0,0.27473949]
[1737773764017,0.29597558,104620.0,104610.0,0.27473949]
[1737773764317,0.35355907,104620.0,104610.0,0.0642]
[1737773764523,0.35355907,104620.0,104600.0,1.07278912]
[1737773767519,0.11449907,104610.0,104600.0,0.84391289]
[1737773768220,0.11449907,104610.0,104600.0,0.87738827]
[1737773770621,0.25739025,104610.0,104600.0,1.16384799]
[1737773775330,0.25739025,104610.0,104600.0,1.1062645]
[1737773777430,0.25739025,104610.0,104600.0,1.07278912]
[1737773780335,0.26674602,104610.0,104600.0,1.07278912]
[1737773780735,0.12385484,104610.0,104600.0,1.07278912]
[1737773782336,0.11449907,104610.0,104600.0,1.07278912]
[1737773783536,0.11449907,104610.0,104600.0,1.10626327]
[1737773784332,0.11449907,104610.0,104600.0,0.93438427]
[1737773786739,0.11449907,104610.0,104600.0,0.99196776]
[1737773787241,0.11449907,104610.0,104600.0,0.93438427]
[1737773789241,0.11449907,104610.0,104600.0,0.97622696]
[1737773789540,0.11449907,104610.0,104600.0,0.93438427]
[1737773790140,0.11449907,104610.0,104600.0,0.97622756]
[1737773790542,0.11449907,104610.0,104600.0,0.93438427]
[1737773791540,0.25739025,104610.0,104600.0,0.93438427]
[1737773794748,0.25739025,104610.0,104600.0,1.10647897]
[1737773796949,0.41034625,104610.0,104600.0,1.04889548]
[1737773797137,0.50052974,104610.0,104600.0,0.94835548]
[1737773797338,0.56442974,104610.0,104600.0,0.94835548]
[1737773801556,0.56442974,104610.0,104600.0,1.00593897]
[1737773801752,0.50684625,104610.0,104600.0,1.00593897]
[1737773803847,0.25739025,104610.0,104600.0,1.06352246]
[1737773804053,0.25739025,104610.0,104600.0,1.10536322]
[1737773804253,0.25739025,104610.0,104600.0,1.13576322]
[1737773807456,0.25739025,104610.0,104600.0,1.55456334]
[1737773807457,0.11449907,104610.0,104600.0,1.55456334]
[1737773809252,0.11449907,104610.0,104600.0,1.51272258]
[1737773809456,0.11449907,104610.0,104600.0,1.45513909]
[1737773811356,0.11449907,104610.0,104600.0,1.52417909]
[1737773814169,0.11449907,104610.0,104600.0,1.5660217]
[1737773815266,0.20042551,104610.0,104600.0,0.97512688]
[1737773817178,0.20042551,104610.0,104600.0,0.93328427]
[1737773821179,0.20042551,104610.0,104600.0,1.03271044]
[1737773821779,0.11449907,104610.0,104600.0,1.20475535]
[1737773822272,0.11449907,104610.0,104600.0,1.14717186]
[1737773825275,0.11449907,104610.0,104600.0,1.14713186]
[1737773828884,0.25739025,104610.0,104600.0,1.14713186]
[1737773836192,0.25739025,104610.0,104600.0,0.97508695]
[1737773839992,0.25739025,104610.0,104600.0,1.26063657]
[1737773841197,0.25739025,104610.0,104600.0,1.20305308]
[1737773843897,0.25739025,104610.0,104600.0,1.50497177]
[1737773844899,0.25739025,104610.0,104600.0,1.43597177]
[1737773845094,0.25739025,104610.0,104600.0,1.50497177]
[1737773845300,0.25739025,104610.0,104600.0,1.46312909]
[1737773845993,0.25739025,104610.0,104600.0,1.52071258]
[1737773846189,0.25739025,104610.0,104600.0,1.46312909]
[1737773846794,0.25739025,104610.0,104600.0,1.52071258]
[1737773848000,0.25739025,104610.0,104600.0,1.57829607]
[1737773848201,0.25739025,104610.0,104600.0,1.52071258]
[1737773850804,0.25739025,104610.0,104600.0,1.56255527]
[1737773854403,0.25739025,104610.0,104600.0,1.52071258]
[1737773854808,0.25739025,104610.0,104600.0,1.56255527]
[1737773856309,0.25739025,104610.0,104600.0,1.52071258]
[1737773859707,0.25739025,104610.0,104600.0,1.45171258]
[1737773859906,0.46792974,104610.0,104600.0,1.36372909]
[1737773860107,0.56282974,104610.0,104600.0,1.21076282]
[1737773861897,0.67707302,104610.0,104600.0,0.56652707]
[1737773862103,0.88491702,104610.0,104590.0,0.51442585]
[1737773862303,0.62893798,104600.0,104590.0,0.51442585]
[1737773865010,0.64712584,104600.0,104580.0,0.1531404]
[1737773865210,0.24276849,104590.0,104580.0,0.1531404]
[1737773866521,0.24276849,104590.0,104580.0,0.0001434]
[1737773866717,0.30776849,104590.0,104580.0,0.0001434]
[1737773867220,0.66856849,104590.0,104580.0,0.0001434]
[1737773868719,0.92528226,104590.0,104580.0,0.0001434]
[1737773871119,0.7826635,104590.0,104580.0,0.0001434]
[1737773871323,0.79248471,104590.0,104580.0,0.0001434]
[1737773874421,0.87795521,104590.0,104580.0,0.0001434]
[1737773883313,0.36237172,104590.0,104580.0,0.05772689]
[1737773883516,0.36237172,104590.0,104580.0,0.48052689]
[1737773883820,0.41995521,104590.0,104580.0,0.5759434]
[1737773889931,0.41995521,104590.0,104580.0,0.60942707]
[1737773891634,0.47710347,104590.0,104580.0,0.60942707]
[1737773895432,0.39154856,104590.0,104580.0,0.60942707]
[1737773900533,0.3608,104570.0,104560.0,0.23217739]
[1737773900737,0.153029,104560.0,104550.0,0.00149847]
[1737773900930,0.62899598,104560.0,104550.0,0.00149847]
[1737773902033,0.62907874,104560.0,104550.0,0.00149847]
[1737773902341,0.62899598,104560.0,104550.0,0.00149847]
[1737773903133,0.68657947,104560.0,104550.0,0.00149847]
[1737773903734,0.68963826,104560.0,104550.0,0.00149847]
[1737773906129,0.60173363,104560.0,104550.0,0.00149847]
[1737773906534,0.60182693,104560.0,104550.0,0.00149847]
[1737773907044,0.60173363,104560.0,104550.0,0.00149847]
[1737773907234,0.61110789,104560.0,104550.0,0.00149847]
[1737773907745,0.62923775,104560.0,104540.0,0.0923434]
[1737773907941,0.60174863,104550.0,104540.0,0.0923434]
[1737773909041,0.513844,104550.0,104540.0,0.0923434]
[1737773909233,0.60174863,104550.0,104540.0,0.0923434]
[1737773910136,0.60184193,104550.0,104540.0,0.0923434]
[1737773910439,0.60174863,104550.0,104540.0,0.0923434]
[1737773911338,0.60181709,104550.0,104540.0,0.0923434]
[1737773911536,0.60183456,104550.0,104540.0,0.0923434]
[1737773911732,0.60174863,104550.0,104540.0,0.0923434]
[1737773912842,0.8008213,104550.0,104540.0,0.0923434]
[1737773916154,0.68706549,104550.0,104540.0,0.0923434]
[1737773918142,0.6871559,104550.0,104540.0,0.0923434]
[1737773918346,0.68706549,104550.0,104540.0,0.0923434]
[1737773918741,0.68715879,104550.0,104540.0,0.0923434]
[1737773918945,0.68706549,104550.0,104540.0,0.0923434]
[1737773919147,0.8008213,104550.0,104540.0,0.0923434]
[1737773923354,0.71291667,104550.0,104540.0,0.0923434]
[1737773923754,0.77058384,104550.0,104540.0,0.0923434]
[1737773924751,0.77067465,104550.0,104540.0,0.0923434]
[1737773924943,0.77058384,104550.0,104540.0,0.0923434]
[1737773926556,0.68526698,104550.0,104540.0,0.0923434]
[1737773929851,0.68526698,104550.0,104540.0,0.0620434]
[1737773931651,0.71370594,104550.0,104540.0,0.0620434]
[1737773934865,0.8849581,104550.0,104540.0,0.0620434]
[1737773935163,0.74267003,104550.0,104540.0,0.0620434]
[1737773936171,0.74276333,104550.0,104540.0,0.0620434]
[1737773936366,0.74267003,104550.0,104540.0,0.0620434]
[1737773937560,0.53195886,104550.0,104540.0,0.33043574]
[1737773937864,0.53204618,104550.0,104540.0,0.33043574]
[1737773938061,0.53204618,104550.0,104540.0,0.27276857]
[1737773943766,0.53204618,104550.0,104540.0,0.33829263]
[1737773944858,0.6180629,104550.0,104540.0,0.28062546]
[1737773945361,0.6180629,104550.0,104540.0,0.33829263]
[1737773945871,0.6180629,104550.0,104540.0,0.28062546]
[1737773946270,0.6180629,104550.0,104540.0,0.33829263]
[1737773946471,0.6180629,104550.0,104540.0,0.28062546]
[1737773948571,0.6180629,104550.0,104540.0,0.33829263]
[1737773949375,0.70372479,104550.0,104540.0,0.33829263]
[1737773949573,0.56084947,104550.0,104540.0,0.33829263]
[1737773968782,0.47518758,104550.0,104540.0,0.33829263]
[1737773968987,0.6180629,104550.0,104540.0,0.33829263]
[1737773969983,0.26505886,104560.0,104540.0,0.6037018]
[1737773970186,0.17115886,104560.0,104550.0,0.33749834]
[1737773970386,0.17115886,104560.0,104550.0,0.36819834]
[1737773970584,0.17115886,104560.0,104550.0,0.40916387]
[1737773971282,0.17115886,104560.0,104550.0,0.40168419]
[1737773973987,0.53210226,104570.0,104550.0,0.76486231]
[1737773974185,0.53210226,104570.0,104560.0,0.26836334]
[1737773978288,0.3609434,104570.0,104560.0,0.26836334]
[1737773979679,0.3609434,104570.0,104560.0,0.27645237]
[1737773982884,0.3609434,104570.0,104560.0,0.30993877]
[1737773983285,0.3609434,104570.0,104560.0,0.30952534]
[1737773984693,0.3609434,104570.0,104560.0,0.25185817]
[1737773987296,0.3609434,104570.0,104560.0,0.30952534]
[1737773987998,0.3609434,104570.0,104560.0,0.25185817]
[1737773989205,0.3609434,104570.0,104560.0,0.30952534]
[1737773992611,0.3609434,104570.0,104560.0,0.33370611]
[1737773992806,0.17115886,104580.0,104570.0,0.153015]
[1737773993010,0.17115886,104580.0,104570.0,0.33513417]
[1737773995806,0.68633326,104590.0,104570.0,0.33513417]
[1737773996011,0.68509326,104590.0,104580.0,0.26833434]
[1737773996200,0.69314363,104590.0,104580.0,0.26833434]
[1737773998403,0.69314363,104590.0,104580.0,0.21066717]
[1737774003515,0.69314363,104590.0,104580.0,0.153]
[1737774003908,0.7508108,104590.0,104570.0,0.21067717]
[1737774004111,0.0971,104580.0,104570.0,0.21067717]
[1737774004914,0.0971,104580.0,104570.0,0.24416156]
[1737774006213,0.6109,104580.0,104570.0,0.15301]
[1737774006620,0.6109,104580.0,104560.0,0.6502724]
[1737774006819,0.6109,104580.0,104560.0,0.68375914]
[1737774007120,0.6109,104580.0,104570.0,0.05766717]
[1737774007418,0.7538406,104580.0,104560.0,0.64218337]
[1737774007616,0.3608,104570.0,104560.0,0.67567142]
[1737774008716,0.3608,104570.0,104560.0,0.73333859]
[1737774010713,0.1429406,104580.0,104570.0,0.153015]
[1737774010914,0.1429406,104580.0,104570.0,0.33483386]
[1737774011115,0.1429406,104580.0,104570.0,0.76471386]
[1737774011816,0.17115886,104580.0,104570.0,0.76471386]
[1737774014320,0.17115886,104580.0,104570.0,0.70704669]
[1737774014517,0.17115886,104580.0,104570.0,0.67356217]
[1737774015121,0.08571858,104580.0,104570.0,0.48460292]
[1737774015606,0.08571858,104580.0,104570.0,0.87885526]
[1737774016321,0.08571858,104580.0,104570.0,0.81817983]
[1737774016521,0.08571858,104580.0,104570.0,0.88749983]
[1737774017813,0.08571858,104580.0,104570.0,0.91763207]
[1737774019016,0.52955457,104590.0,104580.0,0.153]
[1737774020818,0.52955457,104590.0,104580.0,0.18648218]
[1737774021321,0.52955457,104590.0,104580.0,0.27428159]
[1737774021919,0.52955457,104590.0,104580.0,0.24079941]
[1737774022325,0.52955457,104590.0,104580.0,0.27428158]
[1737774022820,0.37656657,104590.0,104580.0,0.27428158]
[1737774023216,0.37656657,104590.0,104580.0,0.24079941]
[1737774024426,0.31416657,104590.0,104580.0,0.24079941]
[1737774024614,0.31416657,104590.0,104580.0,0.27428147]
[1737774026828,0.31416657,104590.0,104580.0,0.30638147]
[1737774028829,0.31416657,104590.0,104580.0,0.30319941]
[1737774034831,0.14300771,104590.0,104580.0,0.30319941]
[1737774037430,0.14300771,104590.0,104580.0,0.33668132]
[1737774037631,0.14300771,104590.0,104580.0,0.24888191]
[1737774037833,0.14300771,104590.0,104580.0,0.27619431]
[1737774038034,0.29599271,104590.0,104580.0,0.24409431]
[1737774038233,0.36099271,104590.0,104580.0,0.24409431]
[1737774039828,0.36099271,104590.0,104580.0,0.18648191]
[1737774040230,0.36099271,104590.0,104580.0,0.24409431]
[1737774041322,0.36099271,104590.0,104580.0,0.18648191]
[1737774041529,0.36099271,104590.0,104580.0,0.24409431]
[1737774041728,0.36099271,104590.0,104580.0,0.18648191]
[1737774042638,0.41860511,104590.0,104580.0,0.18648191]
[1737774043325,0.36099271,104590.0,104580.0,0.24409431]
[1737774043833,0.36099271,104590.0,104580.0,0.18648191]
[1737774045329,0.36099271,104590.0,104580.0,0.153]
[1737774046332,0.38928726,104590.0,104580.0,0.153]
[1737774046732,0.75008726,104590.0,104570.0,0.62007377]
[1737774047033,0.3608,104580.0,104570.0,0.64515379]
[1737774050541,0.5036944,104580.0,104570.0,0.41594774]
[1737774051645,0.6566944,104580.0,104570.0,0.41594774]
[1737774054945,0.82785326,104580.0,104570.0,0.24410699]
[1737774058448,0.6566944,104580.0,104570.0,0.24410699]
[1737774059050,0.66548809,104580.0,104570.0,0.24410699]
[1737774059252,0.66548809,104580.0,104570.0,0.2106224]
[1737774062654,0.66548809,104580.0,104570.0,0.24410725]
[1737774066748,0.66548809,104580.0,104570.0,0.18649485]
[1737774067758,0.66548809,104580.0,104570.0,0.24410725]
[1737774069959,0.83664695,104580.0,104570.0,0.24410725]
[1737774070353,0.83664695,104580.0,104570.0,0.18649485]
[1737774070858,0.83664695,104580.0,104560.0,1.0362276]
[1737774071046,0.83664695,104580.0,104560.0,1.06971382]
[1737774071251,0.86724695,104580.0,104560.0,1.06971382]
[1737774071663,0.92485935,104580.0,104560.0,1.06971382]
[1737774075962,0.92485935,104580.0,104560.0,0.84050777]
[1737774075963,0.25700234,104570.0,104560.0,0.84050777]
[1737774076166,0.41001734,104570.0,104560.0,0.47970777]
[1737774076360,0.25700234,104570.0,104560.0,0.80702155]
[1737774076861,0.25700234,104570.0,104560.0,0.44622155]
[1737774078164,0.25700234,104570.0,104560.0,0.80702155]
[1737774078964,0.25700234,104570.0,104560.0,0.44622155]
[1737774079162,0.25700234,104570.0,104560.0,0.47970798]
[1737774079163,0.41001734,104570.0,104560.0,0.47970798]
[1737774079865,0.26712294,104570.0,104560.0,0.47970798]
[1737774080468,0.26712294,104570.0,104560.0,0.84050798]
[1737774081962,0.26712294,104570.0,104560.0,0.47970798]
[1737774084862,0.2959094,104570.0,104560.0,0.30786723]
[1737774089569,0.2959094,104570.0,104560.0,0.66866723]
[1737774089977,0.2959094,104570.0,104560.0,0.30786723]
[1737774090466,0.2959094,104570.0,104560.0,0.66866723]
[1737774091963,0.40996781,104570.0,104560.0,0.84050798]
[1737774092165,0.25695281,104570.0,104560.0,0.89812038]
[1737774092373,0.25695281,104570.0,104560.0,0.93913456]
[1737774093363,0.25695281,104570.0,104560.0,0.86463395]
[1737774095766,0.0855481,104570.0,104560.0,0.86463395]
[1737774095970,0.0855481,104570.0,104560.0,0.92199925]
[1737774098566,0.0855481,104570.0,104560.0,0.95548163]
[1737774100971,0.0855481,104570.0,104560.0,0.99657446]
[1737774101373,0.11405841,104580.0,104570.0,0.153015]
[1737774101674,0.11405841,104580.0,104570.0,0.63820978]
[1737774103978,0.11405841,104580.0,104570.0,0.81012943]
[1737774106074,0.11405841,104580.0,104570.0,0.86774183]
[1737774107077,0.11405841,104580.0,104570.0,0.83425945]
[1737774108174,0.11420181,104590.0,104570.0,0.68124445]
[1737774108375,0.11420181,104590.0,104580.0,0.6290248]
[1737774111673,0.11420181,104590.0,104580.0,0.6910248]
[1737774112483,0.11420181,104590.0,104580.0,0.79358349]
[1737774116487,0.11420181,104590.0,104580.0,0.7601048]
[1737774122289,0.11420181,104590.0,104580.0,0.6708924]
[1737774123292,0.11420181,104590.0,104580.0,0.6404924]
[1737774123492,0.17600181,104590.0,104580.0,0.6404924]
[1737774124296,0.17600181,104590.0,104580.0,0.81241205]
[1737774125097,0.17600181,104590.0,104580.0,0.71919927]
[1737774125098,0.32898681,104590.0,104580.0,0.71919927]
[1737774125291,0.74739921,104590.0,104580.0,0.35839927]
[1737774127995,0.80449966,104590.0,104580.0,0.18647962]
[1737774128497,0.80449966,104590.0,104580.0,0.153]
[1737774129298,0.153,104580.0,104570.0,0.39162743]
[1737774129504,0.183,104580.0,104570.0,0.4251115]
[1737774130100,0.5438,104580.0,104570.0,0.39162743]
[1737774130495,0.183,104580.0,104570.0,0.42511161]
[1737774130792,0.183,104580.0,104570.0,0.39162743]
[1737774132201,0.183,104580.0,104570.0,0.21970778]
[1737774133299,0.5438,104580.0,104570.0,0.21970778]
[1737774133600,0.6014124,104580.0,104570.0,0.24410594]
[1737774133798,0.5438,104580.0,104570.0,0.24410594]
[1737774134099,0.6014124,104580.0,104570.0,0.153009]
[1737774134305,0.6014124,104580.0,104560.0,0.9504215]
[1737774134306,0.153015,104570.0,104560.0,0.9767941]
[1737774134494,0.2106274,104570.0,104560.0,0.9767941]
[1737774134807,0.513815,104570.0,104560.0,0.6736065]
[1737774135910,0.513815,104570.0,104560.0,0.44440045]
[1737774136214,0.5714274,104570.0,104560.0,0.44440045]
[1737774137820,0.5714274,104570.0,104560.0,0.17206305]
[1737774138016,0.6342274,104570.0,104560.0,0.20555187]
[1737774138212,0.6342274,104570.0,104560.0,0.17206305]
[1737774140721,0.89069484,104570.0,104560.0,0.0001434]
[1737774144019,0.89069484,104570.0,104540.0,0.58591635]
[1737774144020,0.153044,104550.0,104540.0,0.58591635]
[1737774144218,0.2106564,104550.0,104540.0,0.6769954]
[1737774144419,0.5714564,104550.0,104540.0,0.6769954]
[1737774144920,0.513844,104550.0,104540.0,0.6769954]
[1737774145125,0.513844,104550.0,104540.0,0.4143227]
[1737774147629,0.153044,104550.0,104540.0,0.4143227]
[1737774148330,0.153044,104550.0,104540.0,0.7751227]
[1737774148719,0.153044,104550.0,104540.0,0.60320305]
[1737774148915,0.40964184,104560.0,104550.0,0.153044]
[1737774149128,0.40964184,104560.0,104550.0,0.2762564]
[1737774149323,0.25661084,104560.0,104550.0,0.2762564]
[1737774149528,0.25661084,104560.0,104550.0,0.6370564]
[1737774151021,0.25661084,104560.0,104550.0,0.72815801]
[1737774151530,0.17115886,104570.0,104560.0,0.153029]
[1737774151731,0.17115886,104570.0,104560.0,0.73158301]
[1737774152121,0.11377114,104570.0,104560.0,0.57855401]
[1737774152420,0.11377114,104570.0,104560.0,0.73158301]
[1737774154626,0.11377114,104570.0,104560.0,0.76428301]
[1737774155339,0.11377114,104570.0,104560.0,0.70667061]
[1737774155629,0.11377114,104570.0,104560.0,0.28825821]
[1737774155834,0.11377114,104570.0,104560.0,0.34587061]
[1737774156133,0.32439854,104570.0,104560.0,0.25555821]
[1737774156332,0.5714274,104570.0,104560.0,0.42747786]
[1737774156519,0.5714274,104570.0,104560.0,0.32494865]
[1737774157631,0.513815,104570.0,104560.0,0.32494865]
[1737774157828,0.60166345,104570.0,104560.0,0.32494865]
[1737774159834,0.60166345,104570.0,104560.0,0.153029]
[1737774161238,0.513815,104570.0,104560.0,0.153029]
[1737774162834,0.60166345,104570.0,104560.0,0.153029]
[1737774163035,0.60166345,104570.0,104550.0,0.0331434]
[1737774163241,0.0606,104560.0,104550.0,0.21967432]
[1737774163536,0.0606,104560.0,104550.0,0.1861844]
[1737774165237,0.213629,104560.0,104550.0,0.1861844]
[1737774169742,0.213629,104560.0,104550.0,0.21967496]
[1737774176448,0.574429,104560.0,104550.0,0.21967496]
[1737774177347,0.66227745,104560.0,104550.0,0.18667496]
[1737774177549,0.69487745,104560.0,104550.0,0.1531844]
[1737774177750,0.6646883,104560.0,104550.0,0.1531844]
[1737774179952,0.6646883,104560.0,104550.0,0.18667646]
[1737774180250,0.7223476,104560.0,104550.0,0.03363546]
[1737774180452,0.7223476,104560.0,104550.0,0.0001434]
[1737774180946,0.6646883,104560.0,104550.0,0.0001434]
[1737774181145,0.7223476,104560.0,104550.0,0.0001434]
[1737774187061,1.03618809,104560.0,104550.0,0.0001434]
[1737774191659,1.03618809,104560.0,104530.0,0.5864957]
[1737774191660,0.153058,104540.0,104530.0,0.5864957]
[1737774191960,0.2107173,104540.0,104530.0,0.6199927]
[1737774192358,0.2732173,104540.0,104530.0,0.6199927]
[1737774193059,0.3308766,104540.0,104530.0,0.5876927]
[1737774193368,0.7240766,104540.0,104530.0,0.5876927]
[1737774195162,0.7240766,104540.0,104530.0,0.15307]
[1737774195464,0.6664173,104540.0,104530.0,0.15307]
[1737774198264,0.6340173,104540.0,104530.0,0.18517]
[1737774199659,0.153058,104540.0,104530.0,0.2428293]
[1737774199961,0.88549019,104550.0,104530.0,0.6036293]
[1737774200163,0.88549019,104550.0,104530.0,0.6354293]
[1737774203662,0.5716497,104550.0,104530.0,0.80734895]
[1737774204868,0.5716497,104550.0,104530.0,0.84084414]
[1737774205073,0.0001434,104550.0,104540.0,0.5715173]
[1737774205259,0.0001434,104550.0,104540.0,0.6033173]
[1737774207065,0.0001434,104550.0,104540.0,0.6609766]
[1737774207266,0.0001434,104550.0,104540.0,0.77523695]
[1737774209165,0.0001434,104550.0,104540.0,0.83289625]
[1737774209369,0.0001434,104550.0,104540.0,0.86638655]
[1737774212272,0.0001434,104550.0,104540.0,0.87565962]
[1737774213667,0.0001434,104550.0,104540.0,1.10486567]
[1737774214970,0.0001434,104550.0,104540.0,1.07137537]
[1737774216975,0.0001434,104550.0,104540.0,1.1048651]
[1737774218278,0.0001434,104550.0,104540.0,1.07137537]
[1737774219272,0.25683031,104570.0,104560.0,0.153029]
[1737774219475,0.25683031,104570.0,104560.0,0.73175159]
[1737774219881,0.25683031,104570.0,104560.0,0.76375159]
[1737774221894,0.19986938,104580.0,104570.0,0.153015]
[1737774222094,0.19986938,104580.0,104570.0,0.5714743]
[1737774224296,0.0001434,104580.0,104570.0,0.5714743]
[1737774225690,0.0001434,104580.0,104570.0,0.58095487]
[1737774237604,0.0001434,104580.0,104570.0,0.513815]
[1737774237804,0.0320434,104580.0,104570.0,0.582935]
[1737774238008,0.0320434,104580.0,104570.0,0.6405943]
[1737774239607,0.23178905,104580.0,104570.0,0.6405943]
[1737774240997,0.23178905,104580.0,104570.0,0.64969881]
[1737774242009,0.23178905,104580.0,104570.0,0.68318233]
[1737774242210,0.23178905,104580.0,104570.0,0.64969881]
[1737774243115,0.19988905,104580.0,104570.0,0.64969881]
[1737774243306,0.19988905,104580.0,104570.0,0.68259881]
[1737774243609,0.19988905,104580.0,104570.0,0.71608014]
[1737774244504,0.19988905,104580.0,104570.0,0.77373944]
[1737774244811,0.19988905,104580.0,104570.0,0.80533944]
[1737774245111,0.19988905,104580.0,104570.0,0.84581986]
[1737774247710,0.0001434,104580.0,104570.0,1.24651599]
[1737774250616,0.0001434,104580.0,104570.0,1.20603557]
[1737774251714,0.0001434,104580.0,104570.0,1.24610592]
[1737774252215,0.0001434,104580.0,104570.0,1.62964894]
[1737774252715,0.0001434,104580.0,104570.0,1.58957859]
[1737774253715,0.0001434,104580.0,104570.0,1.6299225]
[1737774257120,0.0001434,104580.0,104570.0,1.3608641]
[1737774257919,0.19974565,104590.0,104580.0,0.153]
[1737774258122,0.19974565,104590.0,104580.0,0.66259993]
[1737774259222,0.14281886,104600.0,104590.0,0.152985]
[1737774259408,0.14281886,104600.0,104590.0,0.72448493]
[1737774261012,0.0001434,104600.0,104590.0,0.72448493]
[1737774262019,0.34678602,104610.0,104590.0,0.57149993]
[1737774262218,0.34678602,104610.0,104600.0,0.6981296]
[1737774263121,0.34678602,104610.0,104600.0,0.73160081]
[1737774263313,0.34678602,104610.0,104600.0,0.6981296]
[1737774263823,0.34678602,104610.0,104600.0,0.6290896]
[1737774264127,0.55740132,104610.0,104600.0,0.222011]
[1737774265423,0.49974202,104610.0,104600.0,0.2796703]
[1737774267419,0.185856,104610.0,104600.0,0.2796703]
[1737774268727,0.185856,104610.0,104600.0,0.222011]
[1737774270236,0.19516326,104610.0,104600.0,0.222011]